Cogmind - Beta 11 @@@ ROGUE MODE // 2022.04.05 @ 02:23:28 Player: Azken Zutik Result: Self-destructed Performance ------------- Evolutions (2) 1000 Regions Visited (7) 1400 Robots Destroyed (472) 2360 Value Destroyed (5835) 5835 Prototype IDs (31) 620 Alien Tech Used (0) 0 Bonus (2010) 2010 TOTAL SCORE: 13225 Bonus ------- High Alert Combat Kills 1527 Follower Combat Kills 183 Aligned with FarCom 300 Cogmind --------- Core Integrity 550/550 Matter 300/300 Energy 265/265 System Corruption 0% Temperature Cool (0) Movement Treading (240) Ox1 Location -8/Materials Parts ------- > --- POWER (1) -------- Reinforced Ion Engine > --- PROPULSION (4) --- Light Treads Light Treads Light Treads > --- UTILITY (3) ------ Cooling System Huge Storage Unit Light Armor Plating > --- WEAPON (3) ------- Improved Medium Laser Improved Medium Laser > --- INVENTORY (25) --- Light Ion Engine Light Treads Light Treads High-capacity Matter Pod (200) High-capacity Matter Pod (200) High-capacity Matter Pod (200) Structural Scanner Light Armor Plating High-powered Tractor Beam Trap Reconfigurator Particle Gun Improved Medium Laser Advanced Beam Cannon Heavy Assault Rifle Autogun Grenade Launcher Rocket Launcher Improved Datajack Plasma Cutter Hammer Katana Peak State ------------ > --- POWER ------------ Heavy Ion Engine > --- PROPULSION ------- Light Treads Light Treads Aerolev Unit > --- UTILITY ---------- Improved Heat Sink Large Storage Unit Light Armor Plating > --- WEAPON ----------- Improved Medium Laser Advanced Beam Cannon > --- INVENTORY -------- Heavy Ion Engine Light Treads Huge Storage Unit Large Matter Pod High-capacity Matter Pod Medium Armor Plating Medium Armor Plating High-powered Tractor Beam Improved Medium Laser Improved Medium Laser Improved Medium Laser Grenade Launcher Rocket Launcher Datajack Katana [Rating: 22] Favorites ----------- Power Ion Engine Engine Ion Engine Propulsion Light Treads Treads Light Treads Hover Unit Aerolev Unit Utility Large Storage Unit Device Seismic Detector Storage Large Storage Unit Processor Salvage Targeting Computer Protection Medium Armor Plating Weapon Assault Rifle Energy Gun Improved Medium Laser Energy Cannon Advanced Beam Cannon Ballistic Gun Assault Rifle Launcher Grenade Launcher Impact Weapon Hammer Build | -11 -10 -10 -9 -9 -9 -8 -8 ------- Run | Scr Mat Min Mat Min Exi Min Mat Slots Evolved 4 | . . . 2 . . . 2 Power . | . . . . . . . . Propulsion 2 | . . . 1 . . . 1 Utility 1 | . . . 1 . . . . Weapon 1 | . . . . . . . 1 Parts Attached 129 | 7 22 16 43 11 2 28 . Power 10 | 1 1 1 4 . 1 2 . Engine 10 | 1 1 1 4 . 1 2 . Core . | . . . . . . . . Reactor . | . . . . . . . . Propulsion 23 | 2 2 . 12 3 . 4 . Treads 22 | 2 2 . 11 3 . 4 . Leg . | . . . . . . . . Wheel . | . . . . . . . . Hover 1 | . . . 1 . . . . Flight . | . . . . . . . . Utility 23 | 2 2 1 12 . . 6 . Device 7 | 1 . 1 3 . . 2 . Storage 4 | 1 2 . 1 . . . . Processor 1 | . . . 1 . . . . Hackware . | . . . . . . . . Protection 11 | . . . 7 . . 4 . Artifact . | . . . . . . . . Weapon 73 | 2 17 14 15 8 1 16 . Energy Gun 14 | 1 . . 5 3 . 5 . Energy Cannon 6 | . . . 3 2 . 1 . Ballistic Gun 22 | 1 8 7 2 . . 4 . Ballistic Cannon . | . . . . . . . . Launcher 30 | . 9 7 5 3 1 5 . Special Weapon . | . . . . . . . . Impact Weapon 1 | . . . . . . 1 . Slashing Weapon . | . . . . . . . . Piercing Weapon . | . . . . . . . . Special Melee Weapon . | . . . . . . . . Unidentified Prototypes 5 | . . . 5 . . . . Parts Lost 7 | . . . 2 1 . 4 . Power . | . . . . . . . . Propulsion 2 | . . . 1 . . 1 . Utility 3 | . . . 1 . . 2 . Weapon 2 | . . . . 1 . 1 . Highest Loss Streak 2 | . . . 2 1 . 1 . To Critical Strikes . | . . . . . . . . Average Slot Usage (%) 99 | . 100 100 99 100 100 99 81 Engine 12 | . 14 14 11 11 11 11 9 Treads 30 | . 28 28 32 33 33 33 27 Device 11 | . 14 14 9 11 11 6 9 Storage 12 | . 14 14 11 11 11 11 9 Protection 5 | . . . 11 11 11 15 9 Energy Gun 3 | . . . 12 10 11 5 18 Energy Cannon 2 | . . . 4 10 10 2 . Ballistic Gun 16 | . 18 27 3 . . 11 . Launcher 2 | . 9 . 2 . . . . Naked Turns . | . . . . . . . . Heaviest Build 108 | 15 31 31 105 104 104 108 101 Greatest Support 63 | 40 40 40 63 60 60 60 60 Greatest Overweight (x) 2 | 1 . . 2 1 1 1 1 Average Overweight (x) . | . . . . 1 1 1 1 Largest Inventory Capacity 25 | 8 15 15 25 25 25 25 25 Average Capacity 17 | 5 11 15 18 25 25 25 25 Most Carried 25 | 3 15 15 25 25 25 25 21 Average Carried 16 | . 10 14 18 24 24 22 21 Final Capacity 25 | 8 15 15 25 25 25 25 25 Final Carried 25 | 3 15 15 24 25 25 23 21 Class Distribution -------------------- 77% | Mutant 22% | Scavenger-Mutant Dominant Class ---------------- Mutant | -10/Materials Mutant | -10/Mines Scavenger-Mutant | -9/Materials Mutant | -9/Mines Mutant | -9/Exiles Scavenger-Mutant | -8/Mines Scavenger-Mutant | -8/Materials Resources | -11 -10 -10 -9 -9 -9 -8 -8 ----------- Run | Scr Mat Min Mat Min Exi Min Mat Matter Collected 7827 | 345 3012 1622 1179 467 . 1182 20 Remotely . | . . . . . . . . Salvage Created 16117 | 328 3178 3167 2398 3190 . 3805 51 Parts 955 | 33 246 219 150 61 . 242 4 Haulers Intercepted 8 | . 2 . 6 . . . . Recyclers Shooed 42 | . 12 13 5 3 . 9 . Parts Field Recycled . | . . . . . . . . Retrieved Matter . | . . . . . . . . Parts Self-Destructed . | . . . . . . . . Prevented . | . . . . . . . . Kills | -11 -10 -10 -9 -9 -9 -8 -8 ------- Run | Scr Mat Min Mat Min Exi Min Mat Combat Hostiles Destroyed 130 | . 31 7 52 9 . 30 1 Guns 51 | . 2 3 25 4 . 16 1 Cannons 13 | . . . 7 2 . 4 . AOE 65 | . 29 4 20 3 . 9 . Classes Destroyed 14 | 3 6 1 3 1 . . . Worker 117 | 4 26 25 6 29 . 27 . Builder 102 | . 25 25 3 23 . 26 . Tunneler 76 | 9 2 20 1 21 . 23 . Hauler 8 | . 2 . 6 . . . . Recycler 91 | 1 20 20 6 21 . 23 . Mechanic 5 | . . 2 3 . . . . Operator 7 | . 5 . 2 . . . . Watcher 7 | . 3 . 4 . . . . Swarmer 35 | . 3 . 13 . . 19 . Grunt 79 | . 28 7 30 4 . 10 . Brawler 2 | . . . 1 . . 1 . Duelist 1 | . . . 1 . . . . Sentry 9 | . . . 7 1 . . 1 Assembled 4 | . . . . 4 . . . Best Kill Streak 15 | 4 7 6 14 15 . 6 1 Combat Bots Only 10 | . 3 2 10 2 . 4 1 Max Kills in Single Turn 5 | 1 3 3 5 2 . 2 1 Gunslinging 1 | . . . 1 . . . . Exploded 5 | . 2 2 5 1 . 2 . Melee . | . . . . . . . . Uniques/NPCs Destroyed . | . . . . . . . . Combat | -11 -10 -10 -9 -9 -9 -8 -8 -------- Run | Scr Mat Min Mat Min Exi Min Mat Damage Taken 3727 | . 426 201 1598 265 . 1191 46 Core 399 | . 85 14 200 15 . 85 . Absorbed by Shields . | . . . . . . . . Regen/Repaired (Parts) 116 | . . . 116 . . . . Core Remaining (%) 61 | 100 . 60 . . . 25 . Volleys Fired 1162 | 25 289 238 176 188 . 241 5 Largest 2 | 2 2 2 2 2 . 2 2 Hottest 124 | 70 70 40 124 124 . 124 112 Shots Fired 2124 | 50 443 465 329 369 . 458 10 Gun 1602 | 50 335 455 230 176 . 346 10 Cannon 349 | . . . 74 178 . 97 . Launcher 173 | . 108 10 25 15 . 15 . Special . | . . . . . . . . Kinetic 1091 | 25 331 455 29 . . 251 . Thermal 860 | 25 4 . 275 354 . 192 10 Explosive 173 | . 108 10 25 15 . 15 . Electromagnetic . | . . . . . . . . Robot Hit Streak 18 | 10 12 15 14 18 . 16 8 Robot Miss Streak 7 | 7 5 4 6 3 . 5 1 Penetration Max . | . . . . . . . . Secondary Targets 4 | . . . 3 . . 1 . Max Gunslinging Chain 1 | . . . 1 . . 1 . Shots Hit Robots 1176 | 30 217 252 185 211 . 274 7 Core Hits 665 | 15 157 127 109 107 . 147 3 Critical Kills 4 | . 2 1 . . . 1 . Critical Parts Destroyed 6 | . . 3 . . . 3 . Critical Strikes 45 | 1 2 4 8 15 . 12 3 Burn 35 | 1 . . 8 15 . 8 3 Meltdown 1 | . . . . . . 1 . Destroy 9 | . 2 4 . . . 3 . Melee Attacks 2 | . . . . . . 2 . Impact 2 | . . . . . . 2 . Slashing . | . . . . . . . . Piercing . | . . . . . . . . Sneak Attacks . | . . . . . . . . Combat Hostiles . | . . . . . . . . Follow-up Attacks . | . . . . . . . . Damage Inflicted 25093 | 395 5611 3687 5464 4585 . 5232 119 Guns 13679 | 395 2441 3187 2265 1923 . 3349 119 Cannons 3990 | . . . 859 1873 . 1258 . Explosions 7415 | . 3167 494 2340 789 . 625 . Melee . | . . . . . . . . Ramming 9 | . 3 6 . . . . . Kinetic 8435 | 182 2404 3187 256 . . 2406 . Thermal 9234 | 213 37 . 2868 3796 . 2201 119 Explosive 7415 | . 3167 494 2340 789 . 625 . Electromagnetic . | . . . . . . . . Impact . | . . . . . . . . Slashing . | . . . . . . . . Piercing . | . . . . . . . . Highest Corruption . | . . . . . . . . Average Corruption . | . . . . . . . . Corruption Purged . | . . . . . . . . Corruption Blocked . | . . . . . . . . Overload Shots . | . . . . . . . . Overflow Damage 217 | . 41 . 36 102 . 38 . Projectiles 134 | . . . 20 86 . 28 . Explosions 83 | . 41 . 16 16 . 10 . Melee . | . . . . . . . . Knockbacks . | . . . . . . . . Impact . | . . . . . . . . Kinetic . | . . . . . . . . Secondary . | . . . . . . . . Self-Inflicted Damage 136 | . 73 . . 46 . 17 . Shots 5 | . 3 . . 1 . 1 . Rammed 2 | . 1 1 . . . . . Targets Rammed 3 | . 1 2 . . . . . Kicked . | . . . . . . . . Crushed 1 | . . 1 . . . . . Highest Temperature 216 | 21 36 2 216 . . 208 5 Average Temperature 36 | 12 9 1 32 . . 79 3 Received Heat Transfer 1302 | . 165 114 468 60 . 477 18 Siege Activations . | . . . . . . . . Robots Corrupted . | . . . . . . . . Combat Hostiles . | . . . . . . . . Parts Fried . | . . . . . . . . Impact Corruptions . | . . . . . . . . Robots Melted 3 | . . . 2 . . 1 . Combat Hostiles 1 | . . . . . . 1 . Parts Melted 51 | . . . 19 22 . 9 1 Heat Transferred 21238 | 703 111 . 6401 8658 . 4884 481 Parts Sabotaged . | . . . . . . . . Parts Stolen . | . . . . . . . . Parts Stripped . | . . . . . . . . Power Chain Reactions 2 | . 2 . . . . . . Missiles Intercepted . | . . . . . . . . Alert | -11 -10 -10 -9 -9 -9 -8 -8 ------- Run | Scr Mat Min Mat Min Exi Min Mat Peak Influence 2445 | 70 2445 892 1775 812 . 635 82 Initial 691 | . . 525 12 691 . . . Average 455 | 43 841 334 456 481 . 270 25 Maximum Alert Level 5 | . 5 3 5 3 . 2 . Low Security (%) 43 | 100 48 48 44 . . 47 100 Level 1 10 | . 3 2 12 43 . 12 . Level 2 25 | . 2 28 23 41 . 39 . Level 3 9 | . 3 19 8 15 . . . Level 4 2 | . 8 . 6 . . . . Level 5 7 | . 33 . 4 . . . . High Security . | . . . . . . . . Max Security . | . . . . . . . . Sterilizations 1 | . . . 1 . . . . Squads Dispatched 32 | . 13 3 11 1 . 3 1 Investigation 15 | . 8 1 4 . . 1 1 Extermination . | . . . . . . . . Reinforcement 12 | . 5 . 4 1 . 2 . Assault 5 | . . 2 3 . . . . Garrison . | . . . . . . . . Intercept . | . . . . . . . . Searches Triggered . | . . . . . . . . Construction Impeded 4 | . . . 1 1 . 2 . Haulers Reinforced . | . . . . . . . . Active Scanning Responses . | . . . . . . . . Cargo Convoy Interrupts . | . . . . . . . . Stealth | -11 -10 -10 -9 -9 -9 -8 -8 --------- Run | Scr Mat Min Mat Min Exi Min Mat Distress Signals 2 | . 1 . . 1 . . . Communications Jammed . | . . . . . . . . Distress Signals . | . . . . . . . . Times Spotted 185 | . 49 16 75 8 . 34 3 Peak Tracking Total 9 | . 4 4 9 2 . 4 1 Tactical Retreats 5 | . . . . . . 5 . Traps | -11 -10 -10 -9 -9 -9 -8 -8 ------- Run | Scr Mat Min Mat Min Exi Min Mat Traps Triggered 5 | . 3 . 2 . . . . Indirectly . | . . . . . . . . Trap Hack Attempts . | . . . . . . . . Triggered . | . . . . . . . . Disarmed . | . . . . . . . . Reprogrammed . | . . . . . . . . Reused . | . . . . . . . . Traps Extracted . | . . . . . . . . Installed . | . . . . . . . . Triggered . | . . . . . . . . Machines | -11 -10 -10 -9 -9 -9 -8 -8 ---------- Run | Scr Mat Min Mat Min Exi Min Mat Machines Disabled 72 | . 30 11 22 5 . 4 . Max in Single Turn 2 | . 2 2 2 1 . 1 . Machines Sabotaged . | . . . . . . . . Garrisons Compromised . | . . . . . . . . Overloaded Fab Kills . | . . . . . . . . Hacking | -11 -10 -10 -9 -9 -9 -8 -8 --------- Run | Scr Mat Min Mat Min Exi Min Mat Machines Accessed 20 | . 6 1 8 . 2 1 2 Terminals 12 | . 3 1 5 . . 1 2 Fabricators . | . . . . . . . . Repair Stations 2 | . 1 . 1 . . . . Recycling Units 4 | . 2 . 2 . . . . Scanalyzers . | . . . . . . . . Garrison Access . | . . . . . . . . Total Hacks 40 | . 12 1 19 . 2 2 4 Successful 25 | . 7 1 12 . 2 2 1 Failed 15 | . 5 . 7 . . . 3 Catastrophic 2 | . . . 1 . . . 1 Database Lockouts . | . . . . . . . . Manual 24 | . 10 1 9 . 1 1 2 Terminals 27 | . 7 1 13 . . 2 4 Fabricators . | . . . . . . . . Repair Stations 7 | . 3 . 4 . . . . Recycling Units 4 | . 2 . 2 . . . . Scanalyzers . | . . . . . . . . Garrison Access . | . . . . . . . . Terminal Hacks 9 | . 2 . 3 . 2 1 1 Record 1 | . . . . . 1 . . Robot Analysis 2 | . 2 . . . . . . Prototype ID Bank 2 | . . . 2 . . . . Branch Access Points 1 | . . . . . . . 1 Alert Level 1 | . . . 1 . . . . Dispatch Records 1 | . . . . . . 1 . EX-Prototype ID Bank 1 | . . . . . 1 . . Fabricator Hacks . | . . . . . . . . Repair Station Hacks 4 | . . . 4 . . . . Scan Component 2 | . . . 2 . . . . Repair 2 | . . . 2 . . . . Recycling Unit Hacks . | . . . . . . . . Scanalyzer . | . . . . . . . . Garrison Access Hacks . | . . . . . . . . Unauthorized Hacks 12 | . 5 1 5 . . 1 . Terminals 8 | . 3 1 3 . . 1 . Botnet 3 | . . . 3 . . . . Search 5 | . 3 1 . . . 1 . Fabricators . | . . . . . . . . Repair Stations . | . . . . . . . . Recycling Units 4 | . 2 . 2 . . . . Tunnel 4 | . 2 . 2 . . . . Scanalyzers . | . . . . . . . . Garrison Access . | . . . . . . . . Data Cores Recovered . | . . . . . . . . Used . | . . . . . . . . Hacking Detections 10 | . 3 . 5 . . . 2 Full Trace Events 2 | . 1 . . . . . 1 Feedback Events . | . . . . . . . . Feedback Blocked . | . . . . . . . . Robot Schematics Acquired . | . . . . . . . . Robots Built . | . . . . . . . . Authchips . | . . . . . . . . Time . | . . . . . . . . Total Robot Build Rating . | . . . . . . . . Part Schematics Acquired . | . . . . . . . . Parts Built . | . . . . . . . . Authchips . | . . . . . . . . Time . | . . . . . . . . Total Part Build Rating . | . . . . . . . . Parts Repaired 2 | . . . 2 . . . . Time 29 | . . . 29 . . . . Parts Recycled . | . . . . . . . . Recycled Matter . | . . . . . . . . Retrieved Matter . | . . . . . . . . Retrieved Components . | . . . . . . . . Parts Scanalyzed . | . . . . . . . . Part Schematics Acquired . | . . . . . . . . Parts Damaged . | . . . . . . . . Bothacking | -11 -10 -10 -9 -9 -9 -8 -8 ------------ Run | Scr Mat Min Mat Min Exi Min Mat Used RIF Installer . | . . . . . . . . Robots Hacked . | . . . . . . . . Non-combat . | . . . . . . . . Combat . | . . . . . . . . Robot Hacks Applied . | . . . . . . . . Relay Couplers Released . | . . . . . . . . Fabnet Peak Effective % . | . . . . . . . . Robots Rewired . | . . . . . . . . Allies Hacked . | . . . . . . . . Hacks Repelled . | . . . . . . . . Allies | -11 -10 -10 -9 -9 -9 -8 -8 -------- Run | Scr Mat Min Mat Min Exi Min Mat Total Allies 5 | . . 4 . 1 . . . Largest Group 4 | . . 4 3 1 . . . Highest-Rated Group 71 | . . 71 63 31 . . . Highest-Rated Ally 31 | . . 31 31 31 . . . Total Orders 15 | . . 15 . . . . . STAY 9 | . . 9 . . . . . FOLLOW 5 | . . 5 . . . . . AID 1 | . . 1 . . . . . Ally Attacks 38 | . . 21 14 3 . . . Total Damage 480 | . . 243 196 41 . . . Kills 10 | . . 5 4 1 . . . Allies Corrupted . | . . . . . . . . Allies Melted . | . . . . . . . . Intel | -11 -10 -10 -9 -9 -9 -8 -8 ------- Run | Scr Mat Min Mat Min Exi Min Mat Robot Analysis Total 2 | . 2 . . . . . . Derelict Logs Recovered 2 | . . 1 . 1 . . . Drone Launches . | . . . . . . . . Drone Recoveries . | . . . . . . . . Exploration | -11 -10 -10 -9 -9 -9 -8 -8 ------------- Run | Scr Mat Min Mat Min Exi Min Mat Turns Passed 45559 | 416 10101 15668 3876 4565 653 10145 135 Spaces Moved 11099 | 108 2991 2895 1556 959 271 2269 50 Core 53 | 53 . . . . . . . Treads 11046 | 55 2991 2895 1556 959 271 2269 50 Legs . | . . . . . . . . Wheels . | . . . . . . . . Hover . | . . . . . . . . Flight . | . . . . . . . . Fastest Speed 50 | 50 160 160 160 240 240 240 240 Average Speed 188 | 127 160 160 185 240 240 240 240 Slowest Speed 320 | 160 160 160 320 240 240 240 240 Overloaded Moves . | . . . . . . . . Propulsion Burnouts . | . . . . . . . . Robots Hopped . | . . . . . . . . Cave-ins Triggered . | . . . . . . . . Exploration Rate (%) 70 | 4 100 100 93 99 60 97 12 Regions Visited 7 Branch Regions 4 Pre-discovered Areas 7 | . 2 1 2 1 1 . . Known Exits Taken . | . . . . . . . . Unknown Exits Taken 7 | 1 1 1 1 1 1 1 . Scrap Searched 3 | . . 1 . 1 . 1 . Spaces Dug 20 | . 19 . . . . 1 . Terrain Destroyed 1022 | . 592 81 143 109 . 97 . Melee 1 | . . . . . . 1 . Projectile 3 | . . . 1 1 . 1 . AOE 1018 | . 592 81 142 108 . 95 . Terrain Rammed . | . . . . . . . . Walls Destroyed . | . . . . . . . . Machines Disabled . | . . . . . . . . Actions | -11 -10 -10 -9 -9 -9 -8 -8 --------- Run | Scr Mat Min Mat Min Exi Min Mat Total 33564 | 333 7861 13458 2228 2852 274 6503 55 Wait 21042 | 191 4530 10302 384 1683 . 3952 . Move 11092 | 107 2990 2894 1555 958 270 2268 50 Hop . | . . . . . . . . Pick Up 64 | 3 18 3 30 6 1 3 . Fast Attach 24 | 7 1 . 14 . . 2 . Attach 14 | . . . 6 1 . 7 . Detach 4 | . . . 2 . . 2 . Swap 91 | . 21 16 23 10 2 19 . Drop 66 | . 11 3 38 6 1 7 . Fire 1162 | 25 289 238 176 188 . 241 5 Melee 2 | . . . . . . 2 . Ram . | . . . . . . . . Kick . | . . . . . . . . Crush 3 | . 1 2 . . . . . Escape Stasis . | . . . . . . . . Rewire . | . . . . . . . . Trap . | . . . . . . . . Miscellaneous . | . . . . . . . . Route ------- -11/Scrapyard -10/Materials (discovered 5 exits: *Mat x3 / *Min x2) -10/Mines (discovered 2 exits: *Mat x2) -9/Materials (discovered 7 exits: *Mat x3 / [*Min x2] / [*Sto x2]) -9/Mines (discovered 4 exits: *Mat x2 / *Exi / [*Zio]) -9/Exiles -8/Mines (discovered 2 exits: *Mat x2) -8/Materials History --------- Turn | Location | Event 4 | -11/Scrapyard | Discovered new exit (range 15) 417 | -11/Scrapyard | Entered Materials 418 | -10/Materials | Build established: Mutant 5858 | -10/Materials | Discovered new exit (range 3) 6197 | -10/Materials | Discovered new exit (range 16) 6678 | -10/Materials | Discovered new exit (range 5) 6691 | -10/Materials | Discovered new exit (range 14) 7392 | -10/Materials | Discovered new exit (range 15) 10518 | -10/Materials | Entered Mines 12523 | -10/Mines | Assisted by bots powering up and referring to "LRC-V3" 12537 | -10/Mines | Discovered new exit (range 6) 12571 | -10/Mines | Discovered new exit (range 8) 14280 | -10/Mines | Met a Derelict testing a Signal Generator 14295 | -10/Mines | Found Signal Generator 14689 | -10/Mines | Learned location of Zion (-7) 26186 | -10/Mines | Entered Materials 26186 | -9/Materials | Accompanied by 3 allies 26186 | -9/Materials | Evolved 2 slots: Propulsion x1, Utility x1 26270 | -9/Materials | Discovered new exit (range 6) 27078 | -9/Materials | Discovered new exit (range 4) 27124 | -9/Materials | Build established: Scavenger-Mutant 27968 | -9/Materials | Discovered new exit (range 9) 28374 | -9/Materials | Discovered new exit (range 8) 28864 | -9/Materials | Discovered new exit (range 6) 29178 | -9/Materials | Discovered new exit (range 12) 29314 | -9/Materials | Repaired Lgt. Armor Plating 29331 | -9/Materials | Repaired Med. Armor Plating 29386 | -9/Materials | First assault squad dispatched 29503 | -9/Materials | Build established: Mutant 29703 | -9/Materials | Discovered new exit (range 13) 29847 | -9/Materials | Build established: Scavenger-Mutant 29876 | -9/Materials | Sterilization system engaged 29876 | -9/Materials | Non-combat units ordered to evacuate 29892 | -9/Materials | Destroyed 10 combat bots 29976 | -9/Materials | Combat units ordered to evacuate 30062 | -9/Materials | Entered Mines 30068 | -9/Mines | Escorted by a lone wolf Derelict 30088 | -9/Mines | Learned location of Storage (-9) 30114 | -9/Mines | Assembled infested the area 30178 | -9/Mines | Build established: Mutant 30281 | -9/Mines | Deemed a non-threat by the Exiles lab entrance 30538 | -9/Mines | Discovered new exit (range 7) 30624 | -9/Mines | Learned Materials machine intel 30760 | -9/Mines | A Derelict revealed a hidden shortcut to a safe place 31068 | -9/Mines | Joined a pair of Derelicts in attacking an 0b10 outpost 31070 | -9/Mines | Core integrity fell below 50% 31375 | -9/Mines | Discovered new exit (range 8) 34612 | -9/Mines | Discovered new exit (range 5) 34627 | -9/Mines | Entered Exiles 34687 | -9/Exiles | Met 8R-AWN 34735 | -9/Exiles | Met EX-HEX 34798 | -9/Exiles | Met EX-BIN 34827 | -9/Exiles | Aligned with FarCom system 34829 | -9/Exiles | Given EX-Vault access code 34901 | -9/Exiles | Opened EX-Vault 34922 | -9/Exiles | Found Trap Reconfigurator 34978 | -9/Exiles | Warned to stay clear of 0b10 Research branches 35060 | -9/Exiles | Met EX-DEC 35235 | -9/Exiles | Discovered new exit (range 14) 35280 | -9/Exiles | Left Exiles lab with Trap Reconfigurator 35280 | -9/Exiles | Entered Mines 35312 | -8/Mines | Discovered new exit (range 16) 37379 | -8/Mines | Discovered new exit (range 16) 38538 | -8/Mines | Build established: Scavenger-Mutant 45425 | -8/Mines | Entered Materials 45425 | -8/Materials | Evolved 2 slots: Propulsion x1, Weapon x1 45426 | -8/Materials | Loaded intel: 61 machine locations 45560 | -8/Materials | Self-destructed Last Messages --------------- 44194_ Acquired 10 matter. PARAMETERS=PROPULSION+1,WEAPON+1 LOCATION=UNKNOWN GOAL=ESCAPE 45425_ Receiving FarCom transmissions... Loading Materials machine intel (x61)... 45469_ W-25 Informer suffers critical hit (Burn). 45523_ Y-45 Defender suffers critical hit (Burn). 45523_ Lgt. Armor Plating melted. 45523_ Y-45 Defender destroyed. 45526_ Acquired 20 matter. 45528_ Connecting with Terminal... 45528_ Current location identified: Materials 45528_ Connecting with Terminal... 45528_ ALERT: Suspicious activity at Terminal M001. Dispatching Investigation squad. 45552_ Connecting with Terminal... >>Access(Branch) No branch access points found. 45554_ W-25 Informer suffers critical hit (Burn). Map ----- +----------------------------------------------------+ | ???????????????"??????????????????" | | ??????????????"""?????????????????" | | ??????????????"""?????????????????" | | ????????"?????"""?????????????????" | | ????????"T?????""?????????????????? | | ??????????????"""?????????????????? | | ??????????????""??????????????????? | | ??????????????""??????????????????? | | ???????????????"??????????????????? | | ?"""??????????????????????????????? | | ?"""???? ???????????????????????? | | ?"""???# ???????????????????????? | | ???????# ???????????????????????? | | ?"""???# #??????"""???"""???????? | | ?"""???# #?????"""""?"""""??????? | | ?"""???# #?????"""""?"""""??????? | | ???????# #?????"""""?"""""??????? | | ???????# #??????"""???"""???????? | | ???????# #??????????????????????? | | ???????# #??????????????????????? | | ?????### ###??????w?????????????? | | ?????# ######+###???????????? | | ?????# #???????????? | | ?????# #???????????? | | ?????# T #???????????? | | ?????# @ #???????????? | | ?????# #???????????? | | ?????# ##########???????????? | | ???######+#######?????????????????? | | ???# = ![=#?###########?????? | | ???# T%#### #???""" | | ???# """ =+ + #???"R? | | ???# """ ####![= #???""" | | ???# """ #??#![ #?????? | | ???#[ #??#!= #?????" | | ???# #??# #?????" | | ??##############??# #?????" | | ??# ?####### #?????? | | ??# ! # / #####+########??? | | ??? # | | ????""" """ + | | ????""" """ # [ | | ????""" """ # ##### ########### | | ????? ?## ##???# #?????????? | | ????? ??# ######+####??????" | | ????######???# # #??????" | | ?????????????# + #??????" | | ?????????????# # #??????? | | ?????????????# # #??????" | | ?????????????# #? #??????" | +----------------------------------------------------+ Best States ------------- Heat Dissipation 53 Energy Generation 14 Energy Capacity 280 Matter Stores 300 Matter Capacity 300 Sight Range 16 Terrain Scan Range 14 Terrain Scan Density 10 Armor Coverage 450 Propulsion Shielding 33 Evasion (%) 40 Recoil Reduction 3 Salvage Targeting 1 Item Schematics ----------------- None Robot Schematics ------------------ None Fabricated ------------ Nothing Alien Tech Used ----------------- None Achievements -------------- None Challenges ------------ None Game ------ Seed AssemblySurgeBox Manual? 0 Play Time 02:06:06 Cumulative 265.5 hours Start 2022.04.05 @ 00:03:40 End 2022.04.05 @ 02:23:28 Sessions 1 Manual Loads 0 Difficulty Rogue Special Mode None Game No. 75 Rogue 75 Adventurer 0 Explorer 0 Win Type - Total 6 Types 3/1/0/0/2/0/0/0/0 Lore% 58 Gallery% 71 Achievement% 65 Wizard Run 0 Options --------- ASCII 0 Keyboard 0 Movement Arrows Keybinds 0 Fullscreen 0 Font 28/SmallcapsGlow Map View 72x54 Tactical HUD 1 Map Filters NONE Filters NONE Steam 1 RUN: 9f2f1eba-b37c-4c71-851a-8222b6e0ec19